Cogmind - Beta 15 @@@ ROGUE MODE // 2025.10.14 @ 02:15:29 Player: Veggiepits Result: Self-destructed Performance ------------- Evolutions (4) 2000 Regions Visited (7) 1400 Robots Destroyed (37) 185 Value Destroyed (1167) 1167 Prototype IDs (5) 100 Alien Tech Used (0) 0 Bonus (700) 700 TOTAL SCORE: 5552 Bonus ------- Entered Garrisons 200 Entered DSFs 500 Cogmind --------- Core Integrity 265/850 Matter 157/300 Energy 262/300 System Corruption 0% Temperature Critical (794) Movement Walking (190) Ox1 Location -6/Factory Parts ------- > --- POWER (2) -------- Angular Momentum Engine > --- PROPULSION (5) --- Improved Carbon-fiber Leg Flexi-carbon Leg > --- UTILITY (5) ------ Terrain Scan Processor > --- WEAPON (3) ------- Heavy Plasma Cannon > --- INVENTORY (5) ---- Improved Heat Sink Beam Rifle Peak State ------------ > --- POWER ------------ Improved Deuterium Engine Angular Momentum Engine > --- PROPULSION ------- Improved Carbon-fiber Leg Flexi-carbon Leg Flexi-carbon Leg > --- UTILITY ---------- Terrain Scan Processor Improved Light Armor Plating > --- WEAPON ----------- Gatling Laser Heavy Plasma Cannon Heavy Plasma Cannon > --- INVENTORY -------- Light Fission Core Improved Heat Sink Beam Rifle [Rating: 43] Favorites ----------- Power Ion Engine Engine Ion Engine Power Core Light Nuclear Core Propulsion Aluminum Leg Leg Aluminum Leg Hover Unit Improved Airjet Flight Unit Flight Unit Utility Terrain Scan Processor Device Heat Sink Storage Medium Matter Pod Processor Terrain Scan Processor Hackware Hacking Suite Protection Power Shielding Weapon Autogun Energy Gun Particle Gun Energy Cannon Heavy Plasma Cannon Ballistic Gun Autogun Ballistic Cannon Light Cannon Launcher Grenade Launcher Build | -11 -10 -9 -8 -7 -7 -7 -6 ------- Run | Yrd Mat Mat Mat Fac DSF Gar Fac Slots Evolved 8 | . . 2 2 2 . . 2 Power 1 | . . 1 . . . . . Propulsion 3 | . . 1 . 1 . . 1 Utility 3 | . . . 1 1 . . 1 Weapon 1 | . . . 1 . . . . Parts Attached 58 | 5 13 8 10 6 . . 16 Power 12 | 1 3 2 1 2 . . 3 Engine 10 | 1 2 2 1 2 . . 2 Core 2 | . 1 . . . . . 1 Reactor . | . . . . . . . . Propulsion 15 | 2 3 1 3 1 . . 5 Treads . | . . . . . . . . Leg 8 | 2 . 1 1 . . . 4 Wheel . | . . . . . . . . Hover 2 | . 1 . . 1 . . . Flight 5 | . 2 . 2 . . . 1 Utility 14 | . 3 3 3 2 . . 3 Device 5 | . 1 1 2 1 . . . Storage 3 | . 2 . 1 . . . . Processor 2 | . . 1 . 1 . . . Hackware 1 | . . . . . . . 1 Protection 3 | . . 1 . . . . 2 Artifact . | . . . . . . . . Weapon 17 | 2 4 2 3 1 . . 5 Energy Gun 8 | 1 2 . 3 1 . . 1 Energy Cannon 3 | . . . . . . . 3 Ballistic Gun 4 | 1 . 2 . . . . 1 Ballistic Cannon 1 | . 1 . . . . . . Launcher 1 | . 1 . . . . . . Special Weapon . | . . . . . . . . Impact Weapon . | . . . . . . . . Slashing Weapon . | . . . . . . . . Piercing Weapon . | . . . . . . . . Special Melee Weapon . | . . . . . . . . Unidentified Prototypes 3 | . . . 1 2 . . . Parts Lost 32 | . 6 1 10 . 1 2 12 Power 8 | . 1 1 2 . . 1 3 Propulsion 9 | . 2 . 3 . . 1 3 Utility 5 | . 1 . 2 . . . 2 Weapon 10 | . 2 . 3 . 1 . 4 Highest Loss Streak 6 | . 4 1 4 . 1 2 6 To Critical Strikes . | . . . . . . . . Average Backups 2 | . 2 1 1 5 5 5 3 Power . | . . . . 1 1 1 . Propulsion . | . . . . . . . . Utility . | . . . . 2 2 2 1 Weapon 1 | . 1 1 . 2 2 2 1 Tool/Special . | . . . . . . . . Unused Backups 4 | . 1 1 1 . . . 1 Power 1 | . . . . . . . 1 Propulsion . | . . . . . . . . Utility 2 | . 1 1 . . . . . Weapon 1 | . . . 1 . . . . Tool/Special . | . . . . . . . . Average Slot Usage (%) 52 | . 75 68 50 25 25 12 34 Engine 9 | . 7 13 13 6 7 2 5 Core 1 | . 4 2 . . . . . Leg 7 | . 13 7 7 . . . 7 Hover 1 | . . . . 6 7 2 . Flight 3 | . 9 3 3 . . . . Device 3 | . 5 4 6 . . . . Storage 1 | . 8 . . . . . . Processor 4 | . . 10 2 4 7 7 6 Protection 3 | . . 4 6 . . . 3 Energy Gun 5 | . 10 6 1 6 2 . 2 Ballistic Gun 5 | . 3 15 8 . . . . Ballistic Cannon 1 | . 5 . . . . . . Launcher 1 | . 5 . . . . . . Peak Build Rating 43 | 5 11 11 18 19 15 11 43 Average Rating 11 | 4 6 10 10 13 12 5 21 On Entrance 6 | . 5 8 11 1 15 11 3 Naked Turns 78 | . . . 64 14 . . . Heaviest Build 50 | 6 18 19 35 16 13 9 50 Greatest Support 58 | 20 20 10 20 9 9 9 58 Greatest Overweight (x) 6 | . 2 2 3 1 1 2 6 Average Overweight (x) . | . . 1 . . . . . Largest Inventory Capacity 15 | 5 8 5 15 5 5 5 5 Average Capacity 5 | 5 5 5 5 5 5 5 5 Most Carried 5 | . 5 5 5 5 5 5 5 Average Carried 2 | . 2 1 2 5 5 5 3 Final Capacity 5 | 5 5 5 5 5 5 5 5 Final Carried 5 | . . 1 5 5 5 5 2 Class Distribution -------------------- 77% | Mutant 18% | Scavenger-Mutant Dominant Class ---------------- Mutant | -10/Materials Mutant | -9/Materials Mutant | -8/Materials Mutant | -7/Factory Mutant | -7/DSF Mutant | -7/Garrison Mutant | -6/Factory Resources | -11 -10 -9 -8 -7 -7 -7 -6 ----------- Run | Yrd Mat Mat Mat Fac DSF Gar Fac Matter Collected 1337 | 289 388 285 285 . 6 . 84 Remotely . | . . . . . . . . Salvage Created 1308 | 31 450 272 309 . . . 246 Parts 81 | . 36 15 14 . . . 16 Haulers Intercepted . | . . . . . . . . Recyclers Shooed 1 | . . . . . . . 1 Parts Field Recycled . | . . . . . . . . Retrieved Matter . | . . . . . . . . Parts Self-Destructed . | . . . . . . . . Prevented . | . . . . . . . . Kills | -11 -10 -9 -8 -7 -7 -7 -6 ------- Run | Yrd Mat Mat Mat Fac DSF Gar Fac Combat Hostiles Destroyed 30 | 1 11 6 6 . . . 6 Guns 17 | 1 3 6 6 . . . 1 Cannons 6 | . 2 . . . . . 4 AOE 6 | . 6 . . . . . . Classes Destroyed 9 | 1 5 2 . . . . 1 Worker 1 | . 1 . . . . . . Builder 2 | . 2 . . . . . . Recycler 3 | . 3 . . . . . . Watcher 1 | . 1 . . . . . . Swarmer 6 | . 3 . . . . . 3 Grunt 17 | 1 8 4 4 . . . . Brawler 1 | . . 1 . . . . . Sentry 5 | . . 1 2 . . . 2 Hunter 1 | . . . . . . . 1 Best Kill Streak 7 | 1 7 2 2 . . . 3 Combat Bots Only 4 | 1 4 2 2 . . . 3 Max Kills in Single Turn 5 | 1 5 1 1 . . . 1 Gunslinging . | . . . . . . . . Exploded 3 | . 3 . . . . . . Melee . | . . . . . . . . Uniques/NPCs Destroyed . | . . . . . . . . Combat | -11 -10 -9 -8 -7 -7 -7 -6 -------- Run | Yrd Mat Mat Mat Fac DSF Gar Fac Hostile Shots Fired 585 | 17 83 29 76 . 15 72 293 Missed 219 | 2 32 9 23 . 6 29 118 Hits 366 | 15 51 20 53 . 9 43 175 Projectile 366 | 15 51 20 53 . 9 43 175 AOE 3 | . . . 2 . . . 1 Critical Strikes 8 | . 1 . 5 . . 1 1 Actively Blocked 1 | . . . 1 . . . . Damage Taken 4858 | 162 572 216 999 21 227 657 2004 Core 1905 | 45 174 22 418 . 131 530 585 Absorbed by Shields 14 | . . . . . 14 . . Redirected to Shielding 40 | . . . 40 . . . . Core Remaining (%) 43 | 82 12 94 24 . . 5 . Volleys Fired 153 | 13 33 24 50 . . . 33 Largest 3 | 2 2 2 2 . . . 3 Hottest 260 | 60 130 88 79 . . . 260 Shots Fired 212 | 26 35 48 58 . . . 45 Gun 151 | 26 8 48 58 . . . 11 Cannon 54 | . 20 . . . . . 34 Launcher 7 | . 7 . . . . . . Special . | . . . . . . . . Kinetic 124 | 13 22 42 42 . . . 5 Thermal 81 | 13 6 6 16 . . . 40 Explosive 7 | . 7 . . . . . . Electromagnetic . | . . . . . . . . Robot Hit Streak 12 | 5 5 6 11 . . . 12 Robot Miss Streak 5 | 4 4 5 3 . . . 5 Penetration Max . | . . . . . . . . Secondary Targets . | . . . . . . . . Shots Hit Robots 124 | 14 17 27 41 . . . 25 Core Hits 69 | 2 30 10 14 . . 2 11 Critical Kills 1 | . . . . . . . 1 Critical Parts Destroyed 1 | . . 1 . . . . . Critical Strikes 3 | . 1 1 . . . . 1 Burn 1 | . 1 . . . . . . Meltdown 1 | . . . . . . . 1 Destroy 1 | . . 1 . . . . . Melee Attacks . | . . . . . . . . Impact . | . . . . . . . . Slashing . | . . . . . . . . Piercing . | . . . . . . . . Sneak Attacks . | . . . . . . . . Combat Hostiles . | . . . . . . . . Follow-up Attacks . | . . . . . . . . Damage Inflicted 2795 | 177 883 428 635 . . 8 664 Guns 1443 | 177 95 428 635 . . . 108 Cannons 738 | . 182 . . . . . 556 Explosions 602 | . 602 . . . . . . Melee . | . . . . . . . . Ramming 12 | . 4 . . . . 8 . Kinetic 1095 | 75 210 348 432 . . . 30 Thermal 1086 | 102 67 80 203 . . . 634 Explosive 602 | . 602 . . . . . . Electromagnetic . | . . . . . . . . Impact . | . . . . . . . . Slashing . | . . . . . . . . Piercing . | . . . . . . . . Highest Corruption 2 | . 1 . 2 . . 2 . Average Corruption 1 | . 1 . 2 . . 2 . Corruption Purged . | . . . . . . . . Corruption Blocked . | . . . . . . . . Effects 11 | . 5 . 6 . . . . Message Errors 3 | . . . 3 . . . . Matter Fused 4 | . 2 . 2 . . . . Heat Flow Errors 1 | . 1 . . . . . . Energy Discharges 1 | . 1 . . . . . . Misfires 1 | . 1 . . . . . . Alerts 1 | . . . 1 . . . . Overload Shots . | . . . . . . . . Overflow Damage . | . . . . . . . . Projectiles . | . . . . . . . . Explosions . | . . . . . . . . Melee . | . . . . . . . . Knockbacks 2 | . 2 . . . . . . Impact . | . . . . . . . . Kinetic 2 | . 2 . . . . . . Secondary . | . . . . . . . . Self-Inflicted Damage 5 | . 2 . . . . 3 . Shots . | . . . . . . . . Rammed 5 | . 1 . . . . 4 . Targets Rammed 5 | . 1 . . . . 4 . Kicked . | . . . . . . . . Crushed . | . . . . . . . . Highest Temperature 957 | 90 269 37 153 . . . 957 Average Temperature 112 | 49 80 13 53 . . . 322 Received Heat Transfer 1359 | 90 264 129 495 . . 45 336 Effects 17 | . . . . . . . 17 Shutdowns 4 | . . . . . . . 4 Energy Bleed 3 | . . . . . . . 3 Interference 2 | . . . . . . . 2 Matter Decay 2 | . . . . . . . 2 Short Circuit 1 | . . . . . . . 1 Damage (minor) 2 | . . . . . . . 2 Damage (major) 2 | . . . . . . . 2 Damage (core) 1 | . . . . . . . 1 Siege Activations . | . . . . . . . . Martial Activations . | . . . . . . . . Shielding Activations . | . . . . . . . . Robots Disrupted . | . . . . . . . . Combat Hostiles . | . . . . . . . . Robots Corrupted . | . . . . . . . . Combat Hostiles . | . . . . . . . . Parts Fried . | . . . . . . . . Impact Corruptions . | . . . . . . . . Robots Melted 1 | . . . . . . . 1 Combat Hostiles 1 | . . . . . . . 1 Parts Melted 3 | 1 . . 1 . . . 1 Heat Transferred 2208 | 225 222 185 518 . . . 1058 Parts Sabotaged . | . . . . . . . . Parts Stolen . | . . . . . . . . Parts Stripped . | . . . . . . . . Power Chain Reactions . | . . . . . . . . Alert | -11 -10 -9 -8 -7 -7 -7 -6 ------- Run | Yrd Mat Mat Mat Fac DSF Gar Fac Maximum Alert Level . | . . . . . . . . Low Security (%) 100 | 100 100 100 100 100 100 100 100 Level 1 . | . . . . . . . . Level 2 . | . . . . . . . . Level 3 . | . . . . . . . . Level 4 . | . . . . . . . . Level 5 . | . . . . . . . . High Security . | . . . . . . . . Max Security . | . . . . . . . . Peak Influence 189 | 20 189 40 42 6 15 15 56 Initial 37 | . 6 37 8 6 3 11 7 Average 23 | 1 81 17 8 . 7 7 5 Influence Increases 925 | 20 349 171 192 5 15 15 158 Destroy 0b10 Robot/C 600 | 20 220 120 120 . . . 120 Destroy 0b10 Robot/NC 35 | . 35 . . . . . . Destroy Leader 122 | . 42 20 30 . . . 30 Successful Hack 17 | . . . 12 5 . . . Disable Machine 15 | . 15 . . . . . . Destroy Structure 46 | . 37 1 . . . . 8 Lose Combat Pursuer 90 | . . 30 30 . 15 15 . Influence Decreases 917 | 10 270 240 198 14 5 15 165 Entered New Map 90 | . 4 52 12 8 2 4 8 Time Decay 611 | 10 216 178 144 6 . . 57 Lost Part 216 | . 50 10 42 . 3 11 100 Squads Dispatched 10 | . 1 2 2 . . . 5 Investigation 2 | . . 1 1 . . . . Extermination 1 | . . . . . . . 1 Reinforcement 4 | . 1 1 1 . . . 1 Assault . | . . . . . . . . Garrison 3 | . . . . . . . 3 Intercept . | . . . . . . . . Searches Triggered . | . . . . . . . . Construction Impeded . | . . . . . . . . Haulers Reinforced . | . . . . . . . . Active Scanning Responses . | . . . . . . . . Cargo Convoy Interrupts . | . . . . . . . . Stealth | -11 -10 -9 -8 -7 -7 -7 -6 --------- Run | Yrd Mat Mat Mat Fac DSF Gar Fac Distress Signals 2 | . 1 . 1 . . . . Communications Jammed . | . . . . . . . . Distress Signals . | . . . . . . . . Times Spotted 76 | 1 19 12 15 . 3 15 11 Peak Tracking Total 15 | 1 5 2 7 . 2 15 4 Tactical Retreats 6 | . . 2 2 . 1 1 . Traps | -11 -10 -9 -8 -7 -7 -7 -6 ------- Run | Yrd Mat Mat Mat Fac DSF Gar Fac Traps Triggered 7 | . 2 . 2 1 2 . . Indirectly . | . . . . . . . . Trap Hack Attempts . | . . . . . . . . Triggered . | . . . . . . . . Disarmed . | . . . . . . . . Reprogrammed . | . . . . . . . . Reused . | . . . . . . . . Traps Extracted . | . . . . . . . . Installed . | . . . . . . . . Triggered . | . . . . . . . . Machines | -11 -10 -9 -8 -7 -7 -7 -6 ---------- Run | Yrd Mat Mat Mat Fac DSF Gar Fac Machines Disabled 2 | . 2 . . . . . . Max in Single Turn 1 | . 1 . . . . . . Machines Repaired . | . . . . . . . . Machines Dismantled . | . . . . . . . . Machines Sabotaged . | . . . . . . . . Overloaded Fab Kills . | . . . . . . . . Hacking | -11 -10 -9 -8 -7 -7 -7 -6 --------- Run | Yrd Mat Mat Mat Fac DSF Gar Fac Machines Accessed 7 | . 1 2 1 1 . . 2 Terminals 4 | . 1 2 . 1 . . . Fabricators . | . . . . . . . . Repair Stations . | . . . . . . . . Recycling Units 1 | . . . . . . . 1 Scanalyzers 2 | . . . 1 . . . 1 Garrison Access . | . . . . . . . . Total Hacks 21 | . 3 7 4 1 . . 6 Successful 13 | . 2 5 2 1 . . 3 Failed 8 | . 1 2 2 . . . 3 Catastrophic 1 | . . . . . . . 1 Database Lockouts . | . . . . . . . . Manual 1 | . 1 . . . . . . Terminals 11 | . 3 7 . 1 . . . Fabricators . | . . . . . . . . Repair Stations . | . . . . . . . . Recycling Units 4 | . . . . . . . 4 Scanalyzers 6 | . . . 4 . . . 2 Garrison Access . | . . . . . . . . Terminal Hacks 8 | . 2 5 . 1 . . . Record 3 | . 2 1 . . . . . Prototype ID Bank 1 | . . 1 . . . . . Open DSF 1 | . . . . 1 . . . Alert Level 2 | . . 2 . . . . . Maintenance Status 1 | . . 1 . . . . . Fabricator Hacks . | . . . . . . . . Repair Station Hacks . | . . . . . . . . Recycling Unit Hacks 3 | . . . . . . . 3 Recycle Component 1 | . . . . . . . 1 Process 1 | . . . . . . . 1 Retrieve Matter 1 | . . . . . . . 1 Scanalyzer 2 | . . . 2 . . . . Insert Component 2 | . . . 2 . . . . Garrison Access Hacks . | . . . . . . . . Unauthorized Hacks . | . . . . . . . . Terminals . | . . . . . . . . Fabricators . | . . . . . . . . Repair Stations . | . . . . . . . . Recycling Units . | . . . . . . . . Scanalyzers . | . . . . . . . . Garrison Access . | . . . . . . . . Data Cores Recovered . | . . . . . . . . Used . | . . . . . . . . Hacking Detections 5 | . 1 2 1 . . . 1 Full Trace Events 4 | . 1 2 1 . . . . Feedback Events 1 | . 1 . . . . . . Corruption 1 | . 1 . . . . . . Feedback Blocked . | . . . . . . . . Robot Schematics Acquired . | . . . . . . . . Robots Built . | . . . . . . . . Authchips . | . . . . . . . . Time . | . . . . . . . . Total Robot Build Rating . | . . . . . . . . Part Schematics Acquired . | . . . . . . . . Parts Built . | . . . . . . . . Authchips . | . . . . . . . . Time . | . . . . . . . . Total Part Build Rating . | . . . . . . . . Parts Repaired . | . . . . . . . . Time . | . . . . . . . . Parts Recycled 1 | . . . . . . . 1 Recycled Matter 17 | . . . . . . . 17 Retrieved Matter 17 | . . . . . . . 17 Retrieved Components . | . . . . . . . . Parts Scanalyzed 2 | . . . 2 . . . . Part Schematics Acquired . | . . . . . . . . Parts Damaged 1 | . . . 1 . . . . Bothacking | -11 -10 -9 -8 -7 -7 -7 -6 ------------ Run | Yrd Mat Mat Mat Fac DSF Gar Fac Used RIF Installer . | . . . . . . . . Robots Hacked . | . . . . . . . . Non-combat . | . . . . . . . . Combat . | . . . . . . . . Robot Hacks Applied . | . . . . . . . . Relay Couplers Released . | . . . . . . . . Fabnet Peak Effective % . | . . . . . . . . Robots Rewired . | . . . . . . . . Allies Hacked . | . . . . . . . . Hacks Repelled . | . . . . . . . . Allies | -11 -10 -9 -8 -7 -7 -7 -6 -------- Run | Yrd Mat Mat Mat Fac DSF Gar Fac Total Allies . | . . . . . . . . Largest Group . | . . . . . . . . Highest-Rated Group . | . . . . . . . . Highest-Rated Ally . | . . . . . . . . Total Orders . | . . . . . . . . Ally Attacks . | . . . . . . . . Total Damage . | . . . . . . . . Kills . | . . . . . . . . Allies Corrupted . | . . . . . . . . Allies Melted . | . . . . . . . . Intel | -11 -10 -9 -8 -7 -7 -7 -6 ------- Run | Yrd Mat Mat Mat Fac DSF Gar Fac Active Infowar (turns) 35 | . . . . 35 . . . ECM 35 | . . . . 35 . . . Robot Analysis Total . | . . . . . . . . Derelict Logs Recovered . | . . . . . . . . Drone Launches . | . . . . . . . . Drone Recoveries . | . . . . . . . . Exploration | -11 -10 -9 -8 -7 -7 -7 -6 ------------- Run | Yrd Mat Mat Mat Fac DSF Gar Fac Turns Passed 2728 | 135 585 497 622 270 71 56 492 Spaces Moved 1927 | 88 389 228 459 268 68 97 330 Core 325 | 24 19 . 126 26 . 77 53 Treads . | . . . . . . . . Legs 810 | 64 201 145 196 . . . 204 Wheels . | . . . . . . . . Hover 344 | . 14 . . 242 68 20 . Flight 448 | . 155 83 137 . . . 73 Fastest Speed 32 | 50 37 120 32 50 50 50 40 Average Speed 114 | 100 123 181 105 97 67 52 114 Slowest Speed 350 | 120 200 200 330 110 110 150 350 Overloaded Moves . | . . . . . . . . Propulsion Burnouts . | . . . . . . . . Robots Hopped . | . . . . . . . . Potential Cave-ins . | . . . . . . . . Cave-ins Triggered . | . . . . . . . . Exploration Rate (%) 26 | 6 46 17 33 4 68 34 5 Regions Visited 7 Branch Regions . Pre-discovered Areas . | . . . . . . . . Known Exits Taken 1 | . . . . 1 . . . Unknown Exits Taken 4 | 1 1 1 1 . . . . Scrap Searched . | . . . . . . . . Spaces Dug . | . . . . . . . . Terrain Destroyed 49 | . 40 . . . . . 9 Melee . | . . . . . . . . Projectile 9 | . . . . . . . 9 AOE 40 | . 40 . . . . . . Terrain Rammed . | . . . . . . . . Walls Destroyed . | . . . . . . . . Machines Disabled . | . . . . . . . . Actions | -11 -10 -9 -8 -7 -7 -7 -6 --------- Run | Yrd Mat Mat Mat Fac DSF Gar Fac Total 2253 | 105 462 274 549 275 92 100 396 Wait 15 | . 4 . 7 . . . 4 Move 1920 | 87 388 227 458 267 67 96 330 Hop . | . . . . . . . . Pick Up 14 | . 5 5 2 . . . 2 Fast Attach 54 | 5 11 5 10 6 . . 17 Attach 17 | . 4 4 5 . . . 4 Detach 23 | . 5 4 12 . . . 2 Swap 2 | . 2 . . . . . . Drop 25 | . 9 5 5 2 . . 4 Fire 153 | 13 33 24 50 . . . 33 Melee . | . . . . . . . . Ram 5 | . 1 . . . . 4 . Kick . | . . . . . . . . Crush . | . . . . . . . . Escape Stasis 25 | . . . . . 25 . . Rewire . | . . . . . . . . Trap . | . . . . . . . . Miscellaneous . | . . . . . . . . Route ------- -11/Scrapyard -10/Materials (discovered 2 exits: *Mat / [*Min]) -9/Materials -8/Materials -7/Factory -7/DSF -7/Garrison -6/Factory History --------- Turn | Location | Event 2 | -11/Scrapyard | Met Revision 17 79 | -11/Scrapyard | Discovered new exit (range 8) 136 | -11/Scrapyard | Entered Materials 267 | -10/Materials | Discovered new exit (range 12) 319 | -10/Materials | Build established: Mutant 438 | -10/Materials | Core integrity fell below 50% 524 | -10/Materials | Lost 4 parts (1n1u2w) 696 | -10/Materials | Discovered new exit (range 10) 710 | -10/Materials | Core integrity fell below 20% 721 | -10/Materials | Entered another Materials area 721 | -9/Materials | Evolved 2 slots: Power x1, Propulsion x1 1112 | -9/Materials | Discovered new exit (range 16) 1218 | -9/Materials | Entered another Materials area 1218 | -8/Materials | Evolved 2 slots: Utility x1, Weapon x1 1416 | -8/Materials | Discovered new exit (range 14) 1779 | -8/Materials | Core integrity fell below 50% 1807 | -8/Materials | Lost 4 parts (1p2n1w) 1840 | -8/Materials | Entered Factory 1840 | -7/Factory | Evolved 2 slots: Propulsion x1, Utility x1 2109 | -7/Factory | Identified exit to DSF 2110 | -7/Factory | Entered DSF 2145 | -7/DSF | Additional patrols routed to DSF 2174 | -7/DSF | Discovered new exit (range 15) 2181 | -7/DSF | Entered Garrison 2206 | -7/Garrison | Core integrity fell below 50% 2209 | -7/Garrison | Triggered checkpoint 2213 | -7/Garrison | Triggered checkpoint 2213 | -7/Garrison | Triggered checkpoint 2217 | -7/Garrison | Triggered checkpoint 2227 | -7/Garrison | Core integrity fell below 20% 2232 | -7/Garrison | Discovered new exit (range 10) 2237 | -7/Garrison | Entered Factory 2237 | -6/Factory | Evolved 2 slots: Propulsion x1, Utility x1 2471 | -6/Factory | Lost 6 parts (2p2n2w) 2525 | -6/Factory | Core integrity fell below 50% 2729 | -6/Factory | Self-destructed Last Messages --------------- Imp. Carbon-fiber Leg broken. Overheating: Short circuit. Penetrated by Slug. Flexi-carbon Leg destroyed. Slug penetrates Wall. Penetrated by Slug. Imp. Light Armor Plating destroyed. Power failure, Angular Momentum Engine shutdown. Overheating: Imp. Deuterium Engine damaged (-10). U-05 Engineer builds a Wall. Hvy. Plasma Cannon destroyed. Penetrated by Slug. Imp. Deuterium Engine destroyed. Slug penetrates H-66 Slayer. Gatling Laser destroyed. Overheating: System interference. Hvy. Plasma Cannon temporarily disabled. Terrain Scan Processor temporarily disabled. U-05 Engineer builds a Wall. Penetrated by Slug. Map ----- +----------------------------------------------------+ | ?????????????????????????????????????????????????? | | ?????????????????????????????????????????????????? | | ?????????????????????????????????????????????????? | | ?????????????????????????????????????????????????? | | ?????????????????????????????????????????????????? | | ?????????????????????????????????????????????????? | | ?????????????????????????????????????????????????? | | ?????????????????????????????????????????????????? | | ?????????????????????????????????????????????????? | | ?????????????????????????????????????????????????? | | ?????????????????????????????????????????????????? | | ?????????????????????????????????????????????????? | | ?????????????????????????#???????????????????????? | | ????????????????????????? ???????????????????????? | | ????????????????????????# ???????????????????????? | | ????????????????????????# ???????????????????????? | | ????????????????????????# ???????? ??????????????? | | ????????????????????????# ???????? ##????????????? | | ????????????????????????# ???????? ?????????????? | | ????????????????????????#+#??????? ?????????????? | | ??????????????????#?????# #??????? ?????????????? | | ?????????????###### ????# ###????? #?????????????? | | ???????????? ??# # #???#? #?????????????? | | ????????????? ?#=######## #?????????????? | | ????????????????? #%u u #?????????????? | | ????????????????????? #@%** #?????????????? | | ??????????????????####### u% #?????????????? | | ??????????????????# """ ; h h #?????????????? | | ??????????????????# "Y" #Y;#;## #?????????????? | | ????????????????? + # ##### #??? ?"???????? | | ??????????????? # # #???# #???"""???????? | | ??????????????????#######R#???# #??? ???????? | | ????????????????????????# #???# #####+#???????? | | ???????????????????????? #???# ? | | ????????????????????????###???# ######## #???????? | | ??????????????????????????????# #??????# #???????? | | ??????????????????????????????# #??????# #???????? | | ????????????????????????????###+######?# #???????? | | ????????????????????????????# ### ###?????? | | ????????????????????????????# """" # #?????? | | ????????????????????????????# ""S"" # #####?? | | ????????????????????????????# "" "" + " #?? | | ????????????????????????????# # ### #?? | | ????????????????????????????# """ # #?# #?? | | ????????????????????????????# """ ### ###?# #?? | | ????????????????????????????# """ #?# #???# #?? | | ????????????????????????????# #?# #??## ##? | | ????????????????????????????##########?# #??# ## | | ???????????????????????????????????????#+#??# | | ????????????????????????????????????????????# ## | +----------------------------------------------------+ Best States ------------- Heat Dissipation 45 Energy Generation 29 Energy Capacity 490 Matter Stores 400 Matter Capacity 400 Sight Range 16 Terrain Scan Density 85 ECM Strength 2 Armor Coverage 225 Power Shielding 33 Evasion (%) 63 Targeting Accuracy 6 Offensive Hacking 10 Item Schematics ----------------- None Robot Schematics ------------------ None Fabricated ------------ Nothing Repaired ---------- Nothing Alien Tech Used ----------------- None Achievements -------------- Close Call Crack Shot It's Just You Made in Tau Ceti IV One Hack Too Far Risk Taker Storm Trooper Challenges ------------ None Game ------ Seed CompositeScanTorch Manual? 0 Play Time 00:37:43 Cumulative 2.6 hours Start 2025.05.25 @ 00:18:00 End 2025.10.14 @ 02:15:29 Sessions 3 Manual Loads 0 Difficulty Rogue Special Mode None Game No. 4 Rogue 4 Adventurer 0 Explorer 0 Win Type - Total 0 Types 0/0/0/0/0/0/0/0/0/0 Lore% 0 Gallery% 5 Achievement% 5 Wizard Run 0 Options --------- Layout 1 ASCII 0 Keyboard 1 Movement Numpad Keybinds 0 Fullscreen 0 Font 28/SmallcapsGlow Map View 77x35 Zoom Use 0% Tactical HUD 1 Map Filters NONE Filters NONE Steam 1 RUN: c3f31632-123b-4cfb-8fdc-5161d54dd7b7